bitfinex-derivatives/quotes_SOLF0:USTF0_20241211
["timestamp","ask_amount","ask_price","bid_price","bid_amount"]
[1733960642559,6.52455798,227.41,227.35,18.28110419]
[1733960642560,2.1972,227.39,227.35,6.09370139]
[1733960643253,2.1972,227.39,227.34,12.61825937]
[1733960643557,2.1972,227.39,227.35,6.75912036]
[1733960643753,6.52455798,227.41,227.34,12.61825937]
[1733960643954,6.52455798,227.41,227.36,2.1975]
[1733960643955,2.1971,227.4,227.36,2.1975]
[1733960649563,2.1971,227.4,227.37,2.1973]
[1733960650963,2.197,227.41,227.37,2.1973]
[1733960651862,8.50455798,227.42,227.35,6.52455798]
[1733960652066,2.1971,227.4,227.36,2.1974]
[1733960652765,8.72165798,227.4,227.36,2.1974]
[1733960653160,2.1971,227.4,227.37,2.1973]
[1733960653465,1.4593,227.48,227.39,6.52455798]
[1733960653759,8.50455798,227.47,227.39,6.52455798]
[1733960653963,10.70105798,227.47,227.39,6.52455798]
[1733960654966,8.50455798,227.47,227.39,6.52455798]
[1733960656666,8.50455798,227.47,227.43,2.1967]
[1733960658763,6.52455798,227.45,227.43,2.1967]
[1733960662675,6.52455798,227.45,227.42,2.1969]
[1733960663273,4.1764,227.47,227.42,2.1969]
[1733960663576,6.52455798,227.46,227.42,2.1969]
[1733960664177,8.72105798,227.46,227.42,2.1969]
[1733960666381,8.72105798,227.46,227.43,2.1968]
[1733960667085,8.72105798,227.46,227.41,2.1969]
[1733960667287,8.72105798,227.46,227.4,5.1996126]
[1733960667984,8.72105798,227.46,227.42,2.1968]
[1733960670087,6.52455798,227.46,227.43,2.1967]
[1733960670280,4.3746,227.56,227.45,6.52455798]
[1733960670483,2.1961,227.51,227.46,6.75375218]
[1733960670684,2.1961,227.51,227.46,2.1964]
[1733960671285,8.72075798,227.5,227.46,2.1964]
[1733960676088,2.1962,227.5,227.46,2.1964]
[1733960676992,2.1964,227.47,227.43,1.4002]
[1733960677180,6.52455798,227.48,227.43,1.4002]
[1733960678088,6.52455798,227.48,227.42,8.72135798]
[1733960678288,6.52455798,227.48,227.42,2.1968]
[1733960678488,6.52455798,227.48,227.42,8.72135798]
[1733960678689,2.1966,227.46,227.42,8.72135798]
[1733960679390,2.1966,227.46,227.42,2.1968]
[1733960681690,2.1966,227.46,227.43,8.72135798]
[1733960682488,6.52455798,227.48,227.43,6.52455798]
[1733960682489,2.1964,227.48,227.43,6.52455798]
[1733960682791,2.1964,227.48,227.44,2.1966]
[1733960683888,2.1962,227.49,227.46,2.1965]
[1733960689400,2.1962,227.49,227.44,6.52455798]
[1733960689601,2.1962,227.49,227.45,2.1965]
[1733960692101,8.50455798,227.5,227.43,2.1967]
[1733960692602,1.98,227.5,227.43,2.1967]
[1733960692805,8.50455798,227.5,227.43,2.1967]
[1733960693698,2.1963,227.48,227.43,2.1967]
[1733960699101,2.1963,227.48,227.44,6.52455798]
[1733960699904,2.1965,227.47,227.44,6.52455798]
[1733960702509,6.52455798,227.46,227.39,24.37480558]
[1733960702710,6.52455798,227.44,227.4,4.56233993]
[1733960702910,1.98,227.45,227.4,6.09370139]
[1733960703306,1.98,227.45,227.39,24.37480558]
[1733960703506,1.98,227.45,227.4,17.18092311]
[1733960703706,1.98,227.45,227.4,12.61825937]
[1733960704006,2.1967,227.44,227.4,14.81525937]
[1733960704512,2.1967,227.44,227.4,8.72155798]
[1733960704912,1.98,227.45,227.4,6.52455798]
[1733960705113,1.98,227.45,227.42,6.52455798]
[1733960706011,5.39131448,227.55,227.4,6.09370139]
[1733960706012,1.98,227.48,227.44,6.52455798]
[1733960706216,8.50455798,227.5,227.44,6.52455798]
[1733960706515,1.98,227.5,227.42,12.61825937]
[1733960706713,2.1963,227.48,227.42,6.52455798]
[1733960707415,2.1963,227.48,227.42,12.61825937]
[1733960707611,2.1963,227.48,227.44,8.72125798]
[1733960708207,2.1962,227.49,227.44,8.72125798]
[1733960708617,2.1963,227.48,227.44,6.52455798]
[1733960708814,2.1963,227.48,227.43,2.1968]
[1733960709307,2.1963,227.48,227.42,12.61825937]
[1733960709508,2.1963,227.48,227.44,2.1967]
[1733960712921,8.50455798,227.49,227.43,12.61825937]
[1733960713219,8.50455798,227.49,227.45,2.1966]
[1733960713220,10.70075798,227.49,227.45,2.1966]
[1733960713421,1.98,227.5,227.43,12.61825937]
[1733960713718,1.98,227.5,227.46,2.1964]
[1733960713913,1.98,227.5,227.44,10.65868172]
[1733960713914,2.1961,227.51,227.45,6.52455798]
[1733960714224,4.1758,227.54,227.49,8.72075798]
[1733960715521,10.70035798,227.54,227.49,2.1962]
[1733960718519,2.1958,227.53,227.49,2.1962]
[1733960719219,6.52455798,227.52,227.45,6.09370139]
[1733960719419,6.52455798,227.52,227.45,6.52455798]
[1733960720215,2.1962,227.5,227.46,2.1964]
[1733960723020,2.1962,227.5,227.47,2.1964]
[1733960723519,2.1962,227.5,227.45,8.72105798]
[1733960724314,2.1962,227.5,227.46,2.1965]
[1733960725522,2.1962,227.5,227.45,8.72105798]
[1733960726721,2.1962,227.5,227.46,2.1965]
[1733960727028,2.1962,227.5,227.46,8.72105798]
[1733960729926,2.1962,227.5,227.47,2.1964]
[1733960730129,1.435,227.56,227.48,6.52455798]
[1733960730130,6.52455798,227.55,227.48,6.52455798]
[1733960730327,1.98,227.54,227.48,6.52455798]
[1733960730930,1.98,227.54,227.5,6.52455798]
[1733960731625,2.1959,227.53,227.49,2.1962]
[1733960732833,2.1959,227.52,227.48,8.72085798]
[1733960739231,1.98,227.54,227.48,6.52455798]
[1733960739432,2.1958,227.53,227.49,2.1962]
[1733960740731,1.98,227.54,227.46,6.09370139]
[1733960740927,2.196,227.51,227.47,2.1963]
[1733960742533,2.196,227.51,227.48,2.1963]
[1733960743135,8.50455798,227.54,227.46,12.61825937]
[1733960743333,8.50455798,227.54,227.47,4.55839678]
[1733960743540,8.50455798,227.54,227.46,24.37480558]
[1733960743735,8.50455798,227.54,227.47,4.55880112]
[1733960744033,8.50455798,227.54,227.46,30.89936356]
[1733960744240,8.50455798,227.54,227.47,4.55880137]
[1733960744434,8.50455798,227.54,227.46,30.89936356]
[1733960744639,2.1958,227.53,227.49,2.1961]
[1733960746132,2.1958,227.53,227.5,2.1961]
[1733960747536,8.50455798,227.54,227.5,2.1961]
[1733960747736,1.98,227.55,227.5,6.52455798]
[1733960748335,2.1958,227.54,227.5,8.72065798]
[1733960749836,1.98,227.55,227.5,8.72065798]
[1733960750032,2.1958,227.53,227.48,6.52455798]
[1733960750235,2.1958,227.53,227.48,8.72075798]
[1733960750438,2.1958,227.53,227.48,6.52455798]
[1733960751644,2.1958,227.53,227.49,2.1962]
[1733960755235,2.1961,227.5,227.46,14.81475937]
[1733960755440,1.98,227.5,227.45,6.09370139]
[1733960755745,1.98,227.5,227.44,30.89936356]
[1733960756038,2.1963,227.49,227.45,6.75906121]
[1733960756242,2.1963,227.49,227.45,2.1966]
[1733960760342,2.1963,227.48,227.45,2.1966]
[1733960763145,2.1963,227.48,227.44,8.72125798]
[1733960764053,2.1967,227.45,227.42,24.37480558]
[1733960764247,1.96,227.45,227.4,12.61825937]
[1733960764544,2.1968,227.43,227.4,6.09370139]
[1733960764750,2.1968,227.43,227.39,16.18855937]
[1733960764949,2.1968,227.43,227.39,10.09485798]
[1733960765148,2.1968,227.43,227.39,8.72165798]
[1733960765348,4.1566,227.45,227.41,2.197]
[1733960765550,1.96,227.45,227.41,2.197]
[1733960766652,2.1967,227.44,227.41,2.197]
[1733960767649,4.1566,227.45,227.41,2.197]
[1733960767845,1.96,227.45,227.43,2.1968]
[1733960770048,1.96,227.45,227.41,6.52455798]
[1733960770250,1.96,227.45,227.42,2.1969]
[1733960774757,1.96,227.45,227.4,2.1971]
[1733960774758,2.1967,227.44,227.4,2.1971]
[1733960774957,2.1967,227.44,227.4,8.72165798]
[1733960775157,2.1967,227.44,227.4,2.1971]
[1733960775358,8.72125798,227.44,227.4,2.1971]
[1733960775558,2.1967,227.44,227.4,2.1971]
[1733960775758,4.1566,227.45,227.41,8.72155798]
[1733960778160,2.1967,227.44,227.41,6.52455798]
[1733960778363,2.1967,227.44,227.39,6.52455798]
[1733960779165,2.1967,227.44,227.39,2.1972]
[1733960779463,1.96,227.45,227.39,6.52455798]
[1733960780262,1.96,227.45,227.37,6.70452717]
[1733960780466,1.96,227.45,227.39,6.52455798]
[1733960780664,2.1967,227.44,227.4,2.1971]
[1733960782168,2.1967,227.44,227.41,6.52455798]
[1733960782668,2.1967,227.44,227.4,2.1971]
[1733960784566,6.52455798,227.41,227.36,6.10734406]
[1733960784765,2.1972,227.4,227.35,2.1975]
[1733960784965,4.1572,227.4,227.35,2.1975]
[1733960785264,4.1572,227.4,227.34,10.16175798]
[1733960785265,1.96,227.4,227.34,10.16175798]
[1733960786166,2.1972,227.39,227.34,10.16175798]
[1733960786758,8.72175798,227.39,227.34,7.96415798]
[1733960786962,8.72175798,227.39,227.35,2.1975]
[1733960787157,6.52455798,227.39,227.35,2.1975]
[1733960787356,1.96,227.4,227.36,6.52455798]
[1733960788361,1.96,227.4,227.38,6.52455798]
[1733960788567,1.96,227.43,227.38,6.52455798]
[1733960789470,4.1568,227.43,227.39,2.1972]
[1733960789864,2.1968,227.43,227.39,2.1972]
[1733960790065,4.1568,227.43,227.39,2.1972]
[1733960790864,10.68135798,227.43,227.39,2.1972]
[1733960791668,2.1967,227.45,227.41,2.1969]
[1733960791864,8.48455798,227.46,227.4,6.52455798]
[1733960792667,1.3626,227.54,227.44,6.52455798]
[1733960792873,8.5827,227.7,227.47,2.1963]
[1733960792874,6.52455798,227.52,227.47,2.1963]
[1733960794675,8.72045798,227.52,227.47,2.1963]
[1733960797077,10.68045798,227.52,227.47,2.1963]
[1733960800278,2.196,227.51,227.47,2.1963]
[1733960800476,2.196,227.51,227.44,6.52455798]
[1733960800676,6.52455798,227.5,227.43,1.4795]
[1733960800977,2.1962,227.49,227.43,8.00405798]
[1733960802779,2.1962,227.49,227.44,2.1966]
[1733960805779,6.52455798,227.5,227.44,2.1966]
[1733960805985,2.1965,227.46,227.41,1.4234]
[1733960806189,1.96,227.47,227.41,7.94795798]
[1733960806479,2.1967,227.45,227.41,8.72155798]
[1733960806685,2.1967,227.45,227.41,2.197]
[1733960806885,6.52455798,227.46,227.4,6.52455798]
[1733960807085,2.1967,227.44,227.4,8.72155798]
[1733960807284,6.52455798,227.46,227.4,6.52455798]
[1733960807786,2.1966,227.46,227.41,2.197]
[1733960809788,8.72115798,227.45,227.41,2.197]
[1733960811284,2.1966,227.45,227.41,2.197]
[1733960811486,8.48455798,227.47,227.39,6.52455798]
[1733960811790,4.1565,227.47,227.42,2.1968]
[1733960813089,10.68105798,227.47,227.42,2.1968]
[1733960813389,6.52455798,227.45,227.37,12.63190204]
[1733960813986,6.52455798,227.45,227.37,6.52455798]
[1733960814793,6.52455798,227.45,227.39,2.1971]
[1733960814794,2.1968,227.43,227.39,2.1971]
[1733960815287,1.96,227.42,227.36,6.10734406]
[1733960815488,6.52455798,227.41,227.35,6.52455798]
[1733960816796,2.1971,227.4,227.35,6.52455798]
[1733960817002,6.52455798,227.41,227.35,6.52455798]
[1733960817287,1.96,227.42,227.35,6.52455798]
[1733960817288,2.1972,227.39,227.35,6.52455798]
[1733960818992,2.1971,227.4,227.34,2.1976]
[1733960819287,8.48455798,227.42,227.35,6.52455798]
[1733960819692,2.1973,227.39,227.35,6.52455798]
[1733960822094,2.1973,227.39,227.35,8.72205798]
[1733960824093,2.1973,227.38,227.35,8.72205798]
[1733960827798,2.1973,227.38,227.35,6.52455798]
[1733960828094,2.1974,227.37,227.35,6.52455798]
[1733960828295,6.52455798,227.38,227.31,2.1979]
[1733960828486,6.52455798,227.36,227.31,2.1979]
[1733960829088,6.52455798,227.36,227.3,8.72255798]
[1733960829291,6.52455798,227.36,227.3,2.198]
[1733960829496,6.52455798,227.36,227.3,8.72255798]
[1733960830296,2.1976,227.35,227.3,8.72255798]
[1733960830499,2.1976,227.35,227.3,2.198]
[1733960830698,6.52455798,227.34,227.3,2.198]
[1733960830997,6.52455798,227.34,227.29,10.11805798]
[1733960831193,6.52455798,227.3,227.24,6.10385101]
[1733960831399,6.52455798,227.3,227.23,6.52455798]
[1733960831598,8.48455798,227.3,227.24,2.1986]
[1733960831794,6.52455798,227.28,227.24,2.1986]
[1733960832300,2.1983,227.27,227.22,8.72325798]
[1733960833200,2.1984,227.26,227.22,6.52455798]
[1733960833800,2.1984,227.26,227.21,7.35626558]
[1733960834101,2.1984,227.26,227.21,5.15736558]
[1733960834401,2.1984,227.26,227.22,2.1988]
[1733960837699,2.1984,227.26,227.22,8.72335798]
[1733960838597,2.1984,227.26,227.22,6.52455798]
[1733960839095,2.1984,227.26,227.22,8.72335798]
[1733960839301,2.1985,227.25,227.2,2.8932]
[1733960839498,6.52455798,227.24,227.18,6.52455798]
[1733960839802,2.1987,227.23,227.18,6.52455798]
[1733960840602,2.1987,227.23,227.19,2.1991]
[1733960843802,1.96,227.25,227.18,6.52455798]
[1733960843999,1.96,227.25,227.21,2.1989]
[1733960845603,1.96,227.25,227.22,2.1988]
[1733960847605,1.96,227.25,227.21,6.52455798]
[1733960847806,8.72285798,227.28,227.23,8.72325798]
[1733960848007,8.72285798,227.28,227.23,6.52455798]
[1733960848310,8.72285798,227.28,227.18,6.10385101]
[1733960848311,2.1979,227.32,227.25,6.52455798]
[1733960848506,4.1579,227.32,227.25,6.52455798]
[1733960848905,4.1579,227.32,227.27,6.52455798]
[1733960849100,8.72255798,227.31,227.27,2.1982]
[1733960855206,6.52455798,227.31,227.28,2.1982]
[1733960855809,8.72245798,227.31,227.28,2.1982]
[1733960857215,8.72235798,227.33,227.29,2.1981]
[1733960857514,8.48455798,227.35,227.3,6.52455798]
[1733960857714,1.96,227.35,227.32,2.1978]
[1733960857912,1.96,227.35,227.3,6.52455798]
[1733960858105,1.96,227.38,227.32,6.52455798]
[1733960858307,1.96,227.38,227.34,6.52455798]
[1733960858512,1.96,227.38,227.34,6.45936247]
[1733960858714,1.96,227.38,227.3,9.41235101]
[1733960858917,8.48455798,227.38,227.33,6.52455798]
[1733960859615,8.48455798,227.38,227.34,2.1976]
[1733960862018,2.1976,227.35,227.3,1.3485]
[1733960862316,6.52455798,227.34,227.28,6.52455798]
[1733960862620,6.52455798,227.32,227.29,2.1981]
[1733960863516,6.52455798,227.32,227.28,2.1982]
[1733960864618,6.52455798,227.32,227.26,6.52455798]
[1733960864916,4.2642,227.43,227.24,1.3441]
[1733960864917,2.1973,227.39,227.31,6.52455798]
[1733960865112,6.52455798,227.39,227.33,6.52455798]
[1733960866323,6.52455798,227.39,227.36,2.1974]
[1733960867123,6.52455798,227.4,227.36,2.1974]
[1733960867722,5.14852724,227.47,227.37,6.52455798]
[1733960867921,6.52455798,227.44,227.37,6.52455798]
[1733960868122,8.48455798,227.44,227.37,6.52455798]
[1733960868525,8.48455798,227.44,227.39,2.1972]
[1733960868526,10.68135798,227.44,227.39,2.1972]
[1733960869426,8.72135798,227.44,227.39,2.1972]
[1733960872524,8.72175798,227.4,227.34,3.5397]
[1733960872730,8.72175798,227.4,227.34,7.86665798]
[1733960873231,8.72175798,227.4,227.36,2.1974]
[1733960873824,2.1972,227.4,227.36,2.1974]
[1733960877130,2.197,227.41,227.36,2.1974]
[1733960877332,2.197,227.41,227.36,8.72195798]
[1733960879635,2.197,227.41,227.36,6.52455798]
[1733960879833,8.72145798,227.42,227.37,2.1973]
[1733960880134,8.48455798,227.46,227.38,6.52455798]
[1733960880338,1.96,227.45,227.4,2.197]
[1733960880531,8.48455798,227.46,227.38,6.52455798]
[1733960882038,2.1968,227.44,227.4,2.1971]
[1733960882339,6.52455798,227.44,227.37,6.52455798]
[1733960883637,2.1969,227.42,227.38,2.1972]
[1733960895445,2.197,227.41,227.36,6.10479361]
[1733960895652,6.52455798,227.42,227.35,13.66213945]
[1733960895848,6.52455798,227.42,227.35,11.88440382]
[1733960896448,2.1972,227.39,227.36,2.1974]
[1733960897045,6.52455798,227.38,227.32,6.10479361]
[1733960897251,6.52455798,227.38,227.33,4.55753502]
[1733960897451,6.52455798,227.38,227.32,12.62935159]
[1733960898149,2.1974,227.37,227.33,4.55895772]
[1733960898455,2.1974,227.37,227.32,14.82715159]
[1733960898755,2.1974,227.37,227.33,4.55872058]
[1733960898955,2.1974,227.37,227.32,8.72235798]
[1733960899144,6.52455798,227.38,227.33,4.56197014]
[1733960899343,6.52455798,227.38,227.32,24.41917445]
[1733960899548,6.52455798,227.38,227.32,6.10479361]
[1733960900756,2.1975,227.36,227.32,6.10479361]
[1733960901253,8.72205798,227.36,227.32,6.10479361]
[1733960901649,6.52455798,227.36,227.31,6.10479361]
[1733960901849,2.1977,227.34,227.3,6.52455798]
[1733960902154,8.72225798,227.34,227.29,26.61727445]
[1733960902455,8.72225798,227.34,227.29,8.30289361]
[1733960902647,8.72225798,227.34,227.29,2.1981]
[1733960902852,10.68225798,227.34,227.29,2.1981]
[1733960903056,10.68225798,227.34,227.3,4.55934862]
[1733960903258,10.68225798,227.34,227.29,8.30289361]
[1733960905457,10.68225798,227.34,227.29,2.1981]
[1733960905660,2.1978,227.33,227.28,39.73487852]
[1733960905862,2.1978,227.33,227.29,4.55608254]
[1733960906155,2.1978,227.33,227.28,39.73487852]
[1733960906360,2.1978,227.33,227.28,21.42049768]
[1733960907460,2.1978,227.33,227.28,15.31570407]
[1733960908264,2.1979,227.32,227.28,13.11750407]
[1733960908764,2.1981,227.29,227.25,6.52455798]
[1733960910764,2.1981,227.29,227.25,8.72305798]
[1733960911160,6.52455798,227.32,227.25,6.52455798]
[1733960911364,2.1982,227.28,227.23,14.82805159]
[1733960911563,6.52455798,227.3,227.23,6.52455798]
[1733960911765,2.1984,227.27,227.22,8.72335798]
[1733960912161,6.52455798,227.28,227.22,8.72335798]
[1733960912368,2.1985,227.25,227.22,6.52455798]
[1733960912763,6.52455798,227.28,227.22,6.52455798]
[1733960913067,6.52455798,227.28,227.22,11.83216827]
[1733960913662,2.1984,227.26,227.22,11.83216827]
[1733960916667,2.1984,227.26,227.19,13.06615798]
[1733960916668,2.1986,227.24,227.19,13.06615798]
[1733960917260,2.1986,227.24,227.2,5.21195527]
[1733960917769,2.1987,227.23,227.19,10.14225798]
[1733960919168,6.52455798,227.26,227.19,10.14225798]
[1733960919369,2.1986,227.24,227.19,10.14225798]
[1733960920973,2.1986,227.24,227.19,3.6177]
[1733960921172,2.1986,227.24,227.2,6.52455798]
[1733960923875,2.1986,227.24,227.19,8.90084463]
[1733960924075,2.1986,227.24,227.19,15.42540261]
[1733960925974,2.1986,227.24,227.2,2.199]
[1733960927378,2.1987,227.23,227.19,11.80770261]
[1733960927779,2.1987,227.23,227.19,5.28314463]
[1733960928679,2.1987,227.23,227.19,7.48224463]
[1733960931277,2.1987,227.23,227.19,14.00680261]
[1733960934485,2.1987,227.23,227.19,20.11276306]
[1733960934685,2.1987,227.23,227.19,14.00680261]
[1733960936079,2.1988,227.22,227.19,6.52455798]
[1733960936674,2.1989,227.21,227.18,24.4287311]
[1733960936874,2.1989,227.21,227.19,4.55346779]
[1733960937075,2.1989,227.21,227.18,6.10718277]
[1733960937680,2.199,227.2,227.18,6.10718277]
[1733960938579,2.199,227.2,227.19,4.55507921]
[1733960938786,2.1989,227.21,227.19,4.55507921]
[1733960938988,2.1989,227.21,227.18,6.10718277]
[1733960939188,2.1989,227.21,227.19,4.555069]
[1733960939384,2.1989,227.21,227.19,6.10718277]
[1733960940590,2.1989,227.21,227.2,4.55783228]
[1733960941087,2.1989,227.21,227.17,55.3820202]
[1733960941088,1.96,227.24,227.17,30.95328908]
[1733960941287,6.52455798,227.23,227.18,4.55813518]
[1733960941488,6.52455798,227.23,227.18,6.10718277]
[1733960941792,2.199,227.21,227.18,6.10718277]
[1733960942193,6.52455798,227.23,227.17,36.35408956]
[1733960942388,6.52455798,227.23,227.18,10.66642479]
[1733960942389,2.1991,227.2,227.18,10.66642479]
[1733960942592,2.1991,227.2,227.19,4.55924202]
[1733960943296,2.1991,227.2,227.18,6.10718277]
[1733960943495,2.1991,227.2,227.19,4.56331786]
[1733960944593,2.1991,227.2,227.19,10.67050063]
[1733960945894,2.1991,227.2,227.19,4.56331786]
[1733960946090,2.1992,227.18,227.17,24.4287311]
[1733960946287,8.48455798,227.19,227.14,6.10718277]
[1733960946493,6.52455798,227.17,227.13,24.4287311]
[1733960946794,2.1995,227.15,227.14,4.56596317]
[1733960946995,6.52455798,227.17,227.13,6.10718277]
[1733960947196,6.52455798,227.17,227.12,12.63174075]
[1733960947396,2.1994,227.16,227.13,4.56290798]
[1733960947596,2.1994,227.16,227.12,30.95328908]
[1733960947896,2.1994,227.16,227.13,4.56307261]
[1733960948093,2.1994,227.16,227.12,12.63174075]
[1733960948297,1.96,227.19,227.09,6.10718277]
[1733960948495,6.52455798,227.16,227.1,4.56138924]
[1733960948796,2.1997,227.14,227.09,33.15328908]
[1733960949096,8.48455798,227.17,227.09,12.63174075]
[1733960949292,8.48455798,227.17,227.1,4.5583744]
[1733960949596,1.96,227.17,227.11,6.52455798]
[1733960950595,1.96,227.17,227.11,8.72435798]
[1733960950596,2.1994,227.16,227.11,8.72435798]
[1733960951294,1.96,227.17,227.11,6.52455798]
[1733960951497,1.96,227.17,227.12,2.1997]
[1733960951898,1.96,227.18,227.14,2.1996]
[1733960952697,6.52455798,227.19,227.14,2.1996]
[1733960952897,1.96,227.2,227.16,2.1993]
[1733960953094,6.52455798,227.22,227.15,6.52455798]
[1733960954199,8.72335798,227.22,227.17,2.1993]
[1733960954902,2.1988,227.22,227.17,2.1993]
[1733960955198,8.72335798,227.22,227.17,2.1993]
[1733960955995,2.1991,227.19,227.14,2.1995]
[1733960956296,6.52455798,227.2,227.13,6.52455798]
[1733960956793,6.52455798,227.2,227.13,12.63174075]
[1733960957099,6.52455798,227.2,227.13,6.52455798]
[1733960957299,6.52455798,227.2,227.13,12.63174075]
[1733960957498,6.52455798,227.2,227.15,2.1995]
[1733960957998,6.52455798,227.2,227.16,2.1994]
[1733960959600,6.52455798,227.2,227.13,6.52455798]
[1733960959800,6.52455798,227.2,227.17,2.1993]
[1733960963512,6.52455798,227.2,227.18,2.1992]
[1733960965118,6.52455798,227.2,227.17,2.1993]
[1733960968808,2.1989,227.21,227.17,2.1993]
[1733960969817,6.52455798,227.22,227.18,2.1992]
[1733960970617,8.72335798,227.22,227.18,2.1992]
[1733960971616,2.1989,227.21,227.17,2.1993]
[1733960972613,8.72345798,227.22,227.18,2.1992]
[1733960973421,2.1989,227.21,227.18,2.1992]
[1733960980726,2.1987,227.23,227.19,2.199]
[1733960981025,8.48455798,227.24,227.19,2.199]
[1733960981427,2.1989,227.22,227.18,2.1992]
[1733960983026,2.1989,227.22,227.18,8.31469139]
[1733960983428,2.1989,227.22,227.18,2.1992]
[1733960983929,2.1989,227.22,227.18,14.83924937]
[1733960985229,2.1989,227.22,227.19,4.56490468]
[1733960985531,2.1989,227.22,227.18,14.83924937]
[1733960985729,2.1989,227.21,227.18,14.83924937]
[1733960985928,2.1989,227.21,227.18,8.72375798]
[1733960986230,2.1989,227.21,227.18,14.83924937]
[1733960987028,2.1989,227.21,227.19,4.56794584]
[1733960987228,2.1989,227.21,227.18,14.83924937]
[1733960987529,2.1989,227.21,227.19,4.56794584]
[1733960987731,2.1989,227.21,227.18,14.83924937]
[1733960987929,2.1989,227.21,227.19,4.56794584]
[1733960988131,2.1989,227.21,227.18,14.83924937]
[1733960988325,2.1989,227.21,227.18,8.72375798]
[1733960991025,2.1989,227.21,227.18,14.83924937]
[1733960991228,1.96,227.24,227.19,4.56837534]
[1733960991423,1.96,227.24,227.18,30.98652355]
[1733960991732,6.52455798,227.22,227.19,4.56836199]
[1733960992024,8.48455798,227.24,227.18,24.46196557]
[1733960992225,8.48455798,227.24,227.19,10.68414581]
[1733960992429,8.48455798,227.24,227.19,6.11549139]
[1733960992629,2.1989,227.21,227.19,6.11549139]
[1733960994330,2.1989,227.21,227.18,6.11549139]
[1733960994730,2.1989,227.21,227.17,32.06795903]
[1733960994930,2.1989,227.21,227.18,4.5691566]
[1733960995131,2.1989,227.21,227.18,6.11549139]
[1733960995829,2.199,227.2,227.17,32.06795903]
[1733960996032,2.199,227.2,227.18,4.56964231]
[1733960996231,2.199,227.2,227.18,6.11549139]
[1733960996432,2.199,227.2,227.17,26.66116557]
[1733960996632,2.199,227.2,227.18,4.57012589]
[1733960996834,2.199,227.2,227.17,26.66116557]
[1733960997034,2.199,227.2,227.18,4.57012784]
[1733960997234,2.199,227.2,227.18,6.11549139]
[1733960997530,2.199,227.2,227.17,20.54567418]
[1733960997531,2.199,227.2,227.17,26.66116557]
[1733960997731,2.199,227.2,227.18,4.57066702]
[1733960997930,2.199,227.2,227.17,26.66116557]
[1733960998133,2.199,227.2,227.18,10.68615841]
[1733960998329,2.199,227.2,227.18,6.11549139]
[1733960999236,2.199,227.2,227.19,4.5710696]
[1733961001039,2.199,227.2,227.18,11.35363261]
[1733961001431,2.199,227.2,227.18,5.23814122]
[1733961002336,2.1989,227.22,227.18,7.43734122]
[1733961002538,8.48455798,227.23,227.19,4.57100836]
[1733961002841,8.48455798,227.23,227.18,36.22466477]
[1733961003040,8.48455798,227.23,227.19,4.57099536]
[1733961003241,8.48455798,227.23,227.19,6.11549139]
[1733961004034,1.96,227.23,227.19,6.11549139]
[1733961004541,1.96,227.23,227.18,36.22466477]
[1733961004740,1.96,227.23,227.19,4.57141394]
[1733961004935,1.96,227.23,227.18,36.22466477]
[1733961005135,1.96,227.23,227.19,4.57140619]
[1733961005340,1.96,227.23,227.18,36.22466477]
[1733961005546,1.96,227.23,227.19,4.57136002]
[1733961005747,1.96,227.23,227.18,36.22466477]
[1733961005948,1.96,227.23,227.19,4.57140811]
[1733961006146,1.96,227.23,227.18,36.22466477]
[1733961006347,1.96,227.23,227.19,4.57136963]
[1733961006547,1.96,227.23,227.18,36.22466477]
[1733961006746,1.96,227.23,227.19,4.57141795]
[1733961007040,1.96,227.23,227.18,36.22466477]
[1733961007246,2.199,227.21,227.19,4.57138116]
[1733961007446,2.199,227.21,227.18,36.22466477]
[1733961007745,2.199,227.21,227.19,4.57144479]
[1733961007940,1.96,227.23,227.19,6.11549139]
[1733961008246,2.199,227.2,227.18,11.35363261]
[1733961008447,2.199,227.2,227.19,4.57142114]
[1733961009146,2.199,227.2,227.19,4.57140435]
[1733961009444,2.199,227.2,227.18,11.35363261]
[1733961009937,1.473,227.34,227.19,50.28469256]
[1733961010139,1.473,227.34,227.27,6.52455798]
[1733961010140,8.48455798,227.33,227.27,6.52455798]